fUSD/lending_fUSD_20251019
["ID","MTS","AMOUNT","RATE_DAILY","PERIOD"]
[391840681,1760904642815,-168.0,0.00031999,2]
[391840682,1760904642824,-743.33456228,0.00032,120]
[391840683,1760904642833,-1000.0,0.00032,2]
[391840684,1760904642843,-1000.0,0.00032,2]
[391840685,1760904642852,-1000.0,0.00032,2]
[391840686,1760904642862,-1000.0,0.00032,2]
[391840687,1760904642871,-1000.0,0.00032,2]
[391840688,1760904642881,-1000.0,0.00032,2]
[391840689,1760904642890,-1000.0,0.00032,2]
[391840690,1760904642900,-1000.0,0.00032,2]
[391840691,1760904642909,-684.99,0.00032037,7]
[391840692,1760904642918,-5445.16626044,0.00032157,3]
[391840693,1760904642927,-200.0,0.000322,6]
[391840694,1760904642936,-2590.0,0.0003224,2]
[391840695,1760904642946,-6439.0,0.0003224,2]
[391840696,1760904642956,-556.0,0.0003224,2]
[391840697,1760904642965,-6448.0,0.0003224,2]
[391840698,1760904642975,-150.0,0.00032247,2]
[391840699,1760904642984,-150.0,0.00032247,2]
[391840700,1760904642994,-150.0,0.00032247,2]
[391840701,1760904643002,-150.0,0.00032247,2]
[391840702,1760904643012,-150.0,0.00032247,2]
[391840703,1760904643021,-150.0,0.00032247,2]
[391840704,1760904643030,-150.0,0.00032247,2]
[391840705,1760904643039,-150.0,0.00032247,2]
[391840706,1760904643049,-150.0,0.00032247,2]
[391840707,1760904643058,-150.0,0.00032247,2]
[391840708,1760904643067,-684.99,0.00032311,7]
[391840709,1760904643076,-5445.16626044,0.00032328,3]
[391840710,1760904643087,-5445.16626044,0.00032338,3]
[391840711,1760904643097,-5445.16626044,0.00032348,3]
[391840712,1760904643106,-1199.86,0.00032358,30]
[391840713,1760904643118,-1199.86,0.00032358,30]
[391840714,1760904643133,-1199.86,0.00032358,30]
[391840715,1760904643143,-313.87,0.00032358,30]
[391840716,1760904643152,-2978.49495698,0.00032411,2]
[391840717,1760904643162,-1035.0,0.00032415,2]
[391840718,1760904643171,-168.0,0.00032531,2]
[391840719,1760904643180,-685.02,0.00032585,7]
[391840720,1760904643191,-3181.14198224,0.00032681,2]
[391840721,1760904643201,-5445.16626044,0.00032752,3]
[391840722,1760904643209,-477.82101321,0.00032766,2]
[391840723,1760904643219,-1035.0,0.00032773,7]
[391840724,1760904643229,-151.04,0.00032795,2]
[391840725,1760904643239,-5445.16626044,0.00032835,3]
[391840726,1760904643249,-10890.3325209,0.00032846,3]
[391840727,1760904643258,-5445.16626044,0.00032855,3]
[391840728,1760904643268,-173.40906323,0.00032866,2]
[391840729,1760904643278,-500.0,0.00032875,8]
[391840730,1760904643288,-522.42,0.00032875,8]
[391840731,1760904643297,-153.733589,0.00032876,8]
[391840732,1760904643308,-32241.358233,0.00032876,8]
[391840733,1760904643319,-753.521228,0.00032876,8]
[391840734,1760904643328,-2110.008371,0.00032876,8]
[391840735,1760904643339,-10436.99765,0.00032876,8]
[391840736,1760904643349,-500.0,0.00032876,8]
[391840737,1760904643359,-584.02013138,0.00032876,2]
[391840738,1760904643370,-500.0,0.00032876,8]
[391840739,1760904643379,-500.0,0.00032876,8]
[391840740,1760904643389,-500.0,0.00032876,8]
[391840741,1760904643399,-500.0,0.00032876,8]
[391840742,1760904643408,-390.73,0.00032876,8]
[391840743,1760904643417,-500.0,0.00032876,8]
[391840744,1760904643426,-500.0,0.00032876,8]
[391840745,1760904643436,-366.07881357,0.00032876,8]
[391840746,1760904643445,-500.0,0.00032876,8]
[391840747,1760904643455,-500.0,0.00032876,8]
[391840748,1760904643464,-522.42,0.00032876,8]
[391840749,1760904643473,-500.0,0.00032876,8]
[391840750,1760904643483,-500.0,0.00032876,8]
[391840751,1760904643492,-500.0,0.00032876,8]
[391840752,1760904643502,-372.80170228,0.00032876,8]
[391840753,1760904643511,-500.0,0.00032876,8]
[391840754,1760904643521,-500.0,0.00032876,8]
[391840755,1760904643530,-536.37,0.00032876,8]
[391840756,1760904643539,-915.17,0.00032876,8]
[391840757,1760904643549,-500.0,0.00032876,8]
[391840758,1760904643558,-500.0,0.00032876,8]
[391840759,1760904643568,-500.0,0.00032876,8]
[391840760,1760904643578,-599.77913527,0.00032876,8]
[391840761,1760904643588,-500.0,0.00032876,8]
[391840762,1760904643598,-500.0,0.00032876,2]
[391840763,1760904643609,-1022.13,0.00032876,8]
[391840764,1760904643619,-384.96139111,0.00032876,8]
[391840765,1760904643629,-500.0,0.00032876,8]
[391840766,1760904643638,-500.0,0.00032876,8]
[391840767,1760904643648,-455.09216822,0.00032876,8]
[391840768,1760904643658,-500.0,0.00032876,8]
[391840769,1760904643667,-622.78,0.00032876,8]
[391840770,1760904643676,-227.36335671,0.00032876,8]
[391840771,1760904643686,-909.47,0.00032876,8]
[391840772,1760904643696,-500.0,0.00032876,8]
[391840773,1760904643706,-562.65848733,0.00032876,8]
[391840774,1760904643716,-501.53232657,0.00032876,8]
[391840775,1760904643725,-500.0,0.00032876,8]
[391840776,1760904643737,-500.0,0.00032876,8]
[391840777,1760904643746,-500.0,0.00032876,8]
[391840778,1760904643756,-500.0,0.00032876,8]
[391840779,1760904643766,-529.35506611,0.00032876,8]
[391840780,1760904643775,-500.0,0.00032876,8]
[391840781,1760904643785,-348.91751038,0.00032876,8]
[391840782,1760904643794,-500.0,0.00032876,8]
[391840783,1760904643804,-751.54,0.00032876,8]
[391840784,1760904643813,-500.0,0.00032876,8]
[391840785,1760904643823,-224.31412705,0.00032876,8]
[391840786,1760904643832,-500.0,0.00032876,8]
[391840787,1760904643842,-500.0,0.00032876,8]
[391840788,1760904643851,-631.91,0.00032876,8]
[391840789,1760904643862,-500.0,0.00032876,8]
[391840790,1760904643874,-500.0,0.00032876,8]
[391840791,1760904643883,-500.0,0.00032876,8]
[391840792,1760904643892,-500.0,0.00032876,8]
[391840793,1760904643901,-527.76028137,0.00032876,8]
[391840794,1760904643912,-500.0,0.00032876,8]
[391840795,1760904643922,-161.23279181,0.00032876,8]
[391840796,1760904643931,-500.0,0.00032876,8]
[391840797,1760904643940,-500.0,0.00032876,8]
[391840798,1760904643950,-503.81310254,0.00032876,8]
[391840799,1760904643960,-448.02334351,0.00032876,8]
[391840800,1760904643969,-384.44879227,0.00032876,8]
[391840801,1760904643979,-500.0,0.00032876,8]
[391840802,1760904643988,-153.23521026,0.00032876,8]
[391840803,1760904643997,-500.0,0.00032876,8]
[391840804,1760904644007,-367.61146231,0.00032876,8]
[391840805,1760904644016,-500.0,0.00032876,8]
[391840806,1760904644025,-500.0,0.00032876,8]
[391840807,1760904644035,-500.0,0.00032876,8]
[391840808,1760904644044,-500.0,0.00032876,8]
[391840809,1760904644053,-500.0,0.00032876,8]
[391840810,1760904644063,-887.51,0.00032876,8]
[391840811,1760904644073,-464.92176412,0.00032876,8]
[391840812,1760904644083,-500.0,0.00032876,8]
[391840813,1760904644092,-500.0,0.00032876,8]
[391840814,1760904644102,-500.0,0.00032876,8]
[391840815,1760904644113,-500.0,0.00032876,8]
[391840816,1760904644122,-525.88967717,0.00032876,8]
[391840817,1760904644133,-500.0,0.00032876,8]
[391840818,1760904644142,-500.0,0.00032876,8]
[391840819,1760904644151,-533.36,0.00032876,8]
[391840820,1760904644161,-500.0,0.00032876,8]
[391840821,1760904644171,-213.37401772,0.00032876,8]
[391840822,1760904644181,-500.0,0.00032876,8]
[391840823,1760904644191,-500.0,0.00032876,8]
[391840824,1760904644201,-500.0,0.00032876,8]
[391840825,1760904644211,-500.0,0.00032876,8]
[391840826,1760904644222,-500.0,0.00032876,8]
[391840827,1760904644231,-500.0,0.00032876,8]
[391840828,1760904644240,-643.76,0.00032876,8]
[391840829,1760904644252,-500.0,0.00032876,8]
[391840830,1760904644261,-500.0,0.00032876,8]
[391840831,1760904644272,-500.0,0.00032876,8]
[391840832,1760904644280,-500.0,0.00032876,8]
[391840833,1760904644291,-500.0,0.00032876,8]
[391840834,1760904644302,-500.0,0.00032876,8]
[391840835,1760904644313,-500.0,0.00032876,8]
[391840836,1760904644323,-500.0,0.00032876,8]
[391840837,1760904644333,-500.0,0.00032876,8]
[391840838,1760904644342,-500.0,0.00032876,8]
[391840839,1760904644351,-500.0,0.00032876,8]
[391840840,1760904644360,-500.0,0.00032876,8]
[391840841,1760904644370,-500.0,0.00032876,8]
[391840842,1760904644380,-1150.65,0.00032876,8]
[391840843,1760904644390,-500.0,0.00032876,8]
[391840844,1760904644399,-500.0,0.00032876,8]
[391840845,1760904644408,-500.0,0.00032876,8]
[391840846,1760904644418,-500.0,0.00032876,8]
[391840847,1760904644428,-500.0,0.00032876,8]
[391840848,1760904644438,-324.65865258,0.00032876,8]
[391840849,1760904644448,-500.0,0.00032876,8]
[391840850,1760904644458,-500.0,0.00032876,8]
[391840851,1760904644469,-500.0,0.00032876,8]
[391840852,1760904644480,-500.0,0.00032876,8]
[391840853,1760904644490,-500.0,0.00032876,8]
[391840854,1760904644500,-500.0,0.00032876,8]
[391840855,1760904644511,-500.0,0.00032876,8]
[391840856,1760904644520,-500.0,0.00032876,8]
[391840857,1760904644531,-500.0,0.00032876,8]
[391840858,1760904644541,-500.0,0.00032876,8]
[391840859,1760904644550,-500.0,0.00032876,8]
[391840860,1760904644561,-500.0,0.00032876,8]
[391840861,1760904644570,-500.0,0.00032876,8]
[391840862,1760904644580,-500.0,0.00032876,8]
[391840863,1760904644589,-500.0,0.00032876,8]
[391840864,1760904644599,-500.0,0.00032876,8]
[391840865,1760904644608,-500.0,0.00032876,8]
[391840866,1760904644617,-500.0,0.00032876,8]
[391840867,1760904644627,-519.22,0.00032876,8]
[391840868,1760904644636,-500.0,0.00032876,8]
[391840869,1760904644645,-508.14213085,0.00032876,8]
[391840870,1760904644655,-500.0,0.00032876,8]
[391840871,1760904644664,-500.0,0.00032876,8]
[391840872,1760904644674,-1084.51,0.00032876,8]
[391840873,1760904644685,-500.0,0.00032876,8]
[391840874,1760904644810,-500.0,0.00032876,8]
[391840875,1760904644821,-500.0,0.00032876,8]
[391840876,1760904644830,-1084.93,0.00032876,8]
[391840877,1760904644840,-500.0,0.00032876,8]
[391840878,1760904644849,-500.0,0.00032876,8]
[391840879,1760904644859,-500.0,0.00032876,8]
[391840880,1760904644868,-500.0,0.00032876,8]
[391840881,1760904644877,-500.0,0.00032876,8]
[391840882,1760904644887,-300.0,0.00032876,2]
[391840883,1760904644897,-500.0,0.00032876,8]
[391840884,1760904644906,-500.0,0.00032876,8]
[391840885,1760904644915,-624.15,0.00032876,8]
[391840886,1760904644925,-668.57,0.00032876,8]
[391840887,1760904644934,-500.0,0.00032876,8]
[391840888,1760904644943,-500.0,0.00032876,8]
[391840889,1760904644953,-775.87,0.00032876,8]
[391840890,1760904644962,-500.0,0.00032876,8]
[391840891,1760904644972,-506.64147619,0.00032876,8]
[391840892,1760904644981,-500.0,0.00032876,8]
[391840893,1760904644991,-495.67906624,0.00032876,8]
[391840894,1760904645000,-500.0,0.00032876,8]
[391840895,1760904645010,-511.88703784,0.00032876,8]
[391840896,1760904645019,-500.0,0.00032876,8]
[391840897,1760904645028,-500.0,0.00032876,8]
[391840898,1760904645040,-500.0,0.00032876,8]
[391840899,1760904645050,-500.0,0.00032876,8]
[391840900,1760904645059,-799.27,0.00032876,8]
[391840901,1760904645068,-500.0,0.00032876,8]
[391840902,1760904645079,-560.65862997,0.00032876,8]
[391840903,1760904645089,-581.33446486,0.00032876,8]
[391840904,1760904645099,-576.24,0.00032876,8]
[391840905,1760904645109,-500.0,0.00032876,8]
[391840906,1760904645120,-500.0,0.00032876,8]
[391840907,1760904645129,-500.0,0.00032876,8]
[391840908,1760904645139,-500.0,0.00032876,8]
[391840909,1760904645149,-500.0,0.00032876,8]
[391840910,1760904645159,-500.0,0.00032876,8]
[391840911,1760904645169,-500.0,0.00032876,8]
[391840912,1760904645178,-500.0,0.00032876,8]
[391840913,1760904645188,-500.0,0.00032876,8]
[391840914,1760904645198,-669.43,0.00032876,8]
[391840915,1760904645207,-500.0,0.00032876,8]
[391840916,1760904645217,-1000.0,0.00032876,8]
[391840917,1760904645226,-636.57183675,0.00032876,8]
[391840918,1760904645236,-500.0,0.00032876,8]
[391840919,1760904645247,-512.9731178,0.00032876,8]
[391840920,1760904645257,-213.66777852,0.00032876,8]
[391840921,1760904645266,-407.61748519,0.00032876,8]
[391840923,1760904645277,-500.0,0.00032876,8]
[391840924,1760904645288,-500.0,0.00032876,8]
[391840925,1760904645298,-500.0,0.00032876,8]
[391840926,1760904645307,-500.0,0.00032876,8]
[391840927,1760904645317,-223.22299714,0.00032876,8]
[391840928,1760904645326,-567.90542068,0.00032876,8]
[391840929,1760904645335,-277.03310149,0.00032876,8]
[391840930,1760904645344,-871.21,0.00032876,8]
[391840931,1760904645354,-500.0,0.00032876,8]
[391840932,1760904645363,-500.0,0.00032876,8]
[391840933,1760904645374,-540.9,0.00032876,8]
[391840934,1760904645383,-500.0,0.00032876,8]
[391840935,1760904645394,-500.0,0.00032876,8]
[391840936,1760904645404,-501.29377732,0.00032876,8]
[391840937,1760904645414,-500.0,0.00032876,8]
[391840938,1760904645425,-500.0,0.00032876,8]
[391840939,1760904645435,-500.0,0.00032876,8]
[391840941,1760904645445,-989.94,0.00032876,8]
[391840942,1760904645454,-500.0,0.00032876,8]
[391840943,1760904645464,-196.53394879,0.00032876,8]
[391840945,1760904645474,-500.0,0.00032876,8]
[391840946,1760904645485,-500.0,0.00032876,8]
[391840947,1760904645494,-500.0,0.00032876,8]
[391840948,1760904645503,-500.0,0.00032876,8]
[391840949,1760904645513,-509.33973247,0.00032876,8]
[391840950,1760904645524,-500.0,0.00032876,8]
[391840951,1760904645534,-500.0,0.00032876,8]
[391840952,1760904645544,-505.20416161,0.00032876,8]
[391840953,1760904645554,-500.0,0.00032876,8]
[391840954,1760904645563,-500.0,0.00032876,8]
[391840955,1760904645573,-500.0,0.00032876,8]
[391840956,1760904645582,-517.43646662,0.00032876,8]
[391840957,1760904645591,-500.0,0.00032876,8]
[391840958,1760904645601,-500.0,0.00032876,2]
[391840959,1760904645610,-500.0,0.00032876,8]
[391840960,1760904645620,-500.0,0.00032876,8]
[391840961,1760904645629,-500.65641574,0.00032876,8]
[391840962,1760904645638,-500.0,0.00032876,8]
[391840963,1760904645647,-507.41298888,0.00032876,8]
[391840964,1760904645657,-312.0027675,0.00032876,8]
[391840965,1760904645666,-500.0,0.00032876,8]
[391840966,1760904645675,-500.0,0.00032876,8]
[391840967,1760904645685,-500.0,0.00032876,2]
[391840968,1760904645695,-500.0,0.00032876,8]
[391840969,1760904645704,-572.04,0.00032876,8]
[391840970,1760904645714,-500.0,0.00032876,8]
[391840971,1760904645723,-1077.72,0.00032876,8]
[391840972,1760904645733,-500.0,0.00032876,8]
[391840973,1760904645743,-500.0,0.00032876,8]
[391840974,1760904645753,-395.16896967,0.00032876,8]
[391840975,1760904645764,-500.0,0.00032876,8]
[391840976,1760904645774,-500.0,0.00032876,8]
[391840977,1760904645784,-500.0,0.00032876,8]
[391840978,1760904645794,-500.99929863,0.00032876,8]
[391840979,1760904645803,-500.0,0.00032876,8]
[391840980,1760904645822,-500.0,0.00032876,8]
[391840981,1760904645835,-505.55101069,0.00032876,8]
[391840982,1760904645844,-504.78084299,0.00032876,8]
[391840983,1760904645854,-500.0,0.00032876,8]
[391840984,1760904645865,-500.0,0.00032876,8]
[391840985,1760904645874,-500.0,0.00032876,8]
[391840986,1760904645884,-500.0,0.00032876,8]
[391840987,1760904645895,-500.0,0.00032876,8]
[391840988,1760904645906,-500.0,0.00032876,8]
[391840989,1760904645916,-500.0,0.00032876,8]
[391840990,1760904645926,-314.05463709,0.00032876,8]
[391840991,1760904645935,-240.53589638,0.00032876,8]
[391840992,1760904645947,-500.0,0.00032876,8]
[391840993,1760904645957,-500.0,0.00032876,8]
[391840994,1760904645967,-500.0,0.00032876,8]
[391840995,1760904645978,-500.0,0.00032876,8]
[391840996,1760904645987,-500.0,0.00032876,8]
[391840997,1760904645997,-300.0,0.00032876,2]
[391840998,1760904646006,-500.0,0.00032876,8]
[391840999,1760904646015,-500.0,0.00032876,8]
[391841000,1760904646027,-500.0,0.00032876,8]
[391841001,1760904646036,-500.0,0.00032876,8]
[391841002,1760904646046,-500.0,0.00032876,8]
[391841003,1760904646056,-960.1,0.00032876,8]
[391841004,1760904646066,-500.0,0.00032876,8]
[391841005,1760904646075,-500.0,0.00032876,8]
[391841007,1760904646085,-500.0,0.00032876,8]
[391841008,1760904646094,-813.27,0.00032876,8]
[391841010,1760904646103,-1026.45,0.00032876,8]
[391841012,1760904646113,-586.63856919,0.00032876,8]
[391841013,1760904646122,-500.0,0.00032876,8]
[391841014,1760904646132,-500.0,0.00032876,8]
[391841015,1760904646141,-591.97229847,0.00032876,8]
[391841016,1760904646150,-500.0,0.00032876,8]
[391841017,1760904646160,-500.0,0.00032876,8]
[391841018,1760904646169,-408.27387897,0.00032876,8]
[391841019,1760904646182,-330.49076961,0.00032876,8]
[391841020,1760904646192,-500.0,0.00032876,8]
[391841021,1760904646202,-500.0,0.00032876,8]
[391841022,1760904646212,-1000.0,0.00032876,30]
[391841023,1760904646222,-500.0,0.00032876,8]
[391841024,1760904646232,-504.16472017,0.00032876,8]
[391841025,1760904646243,-227.6921092,0.00032876,7]
[391841026,1760904646253,-503.40108256,0.00032876,8]
[391841027,1760904646263,-500.0,0.00032876,2]
[391841028,1760904646273,-307.94603926,0.00032876,8]
[391841029,1760904646283,-850.64,0.00032876,8]
[391841030,1760904646293,-500.0,0.00032876,3]
[391841031,1760904646303,-500.0,0.00032876,8]
[391841032,1760904646312,-500.0,0.00032876,8]
[391841033,1760904646322,-995.78,0.00032876,8]
[391841034,1760904646332,-500.0,0.00032876,8]
[391841035,1760904646342,-500.0,0.00032876,8]
[391841036,1760904646352,-625.37383545,0.00032876,8]
[391841037,1760904646366,-500.0,0.00032876,8]
[391841038,1760904646376,-280.39083711,0.00032876,8]
[391841039,1760904646387,-1186.62,0.00032876,8]
[391841040,1760904646396,-500.0,0.00032876,8]
[391841041,1760904646406,-500.0,0.00032876,8]
[391841042,1760904646416,-500.0,0.00032876,8]
[391841043,1760904646427,-404.86553524,0.00032876,8]
[391841044,1760904646437,-725.52,0.00032876,8]
[391841045,1760904646446,-500.84975821,0.00032876,8]
[391841046,1760904646456,-500.0,0.00032876,8]
[391841047,1760904646466,-494.20148804,0.00032876,8]
[391841048,1760904646475,-888.87,0.00032876,8]
[391841049,1760904646485,-500.0,0.00032876,8]
[391841050,1760904646496,-500.0,0.00032876,8]
[391841051,1760904646506,-500.0,0.00032876,8]
[391841052,1760904646516,-500.0,0.00032876,8]
[391841053,1760904646526,-500.0,0.00032876,8]
[391841054,1760904646536,-500.0,0.00032876,8]
[391841055,1760904646546,-500.0,0.00032876,8]
[391841056,1760904646560,-500.0,0.00032876,8]
[391841057,1760904646571,-500.0,0.00032876,8]
[391841058,1760904646580,-508.11,0.00032876,8]
[391841059,1760904646590,-4330.59,0.00032876,2]
[391841060,1760904646600,-500.0,0.00032876,8]
[391841061,1760904646610,-849.17,0.00032876,8]
[391841062,1760904646620,-821.63,0.00032876,8]
[391841063,1760904646629,-511.28466677,0.00032876,8]
[391841064,1760904646639,-500.0,0.00032876,8]
[391841065,1760904646649,-500.0,0.00032876,8]
[391841066,1760904646658,-500.0,0.00032876,8]
[391841067,1760904646668,-500.0,0.00032876,8]
[391841068,1760904646677,-502.38,0.00032876,8]
[391841069,1760904646686,-500.0,0.00032876,8]
[391841070,1760904646696,-500.0,0.00032876,8]
[391841071,1760904646705,-534.22573689,0.00032876,8]
[391841072,1760904646716,-500.0,0.00032876,8]
[391841073,1760904646725,-500.0,0.00032876,8]
[391841074,1760904646738,-500.0,0.00032876,8]
[391841075,1760904646747,-500.0,0.00032876,8]
[391841076,1760904646757,-500.0,0.00032876,8]
[391841077,1760904646766,-1334.8,0.00032876,8]
[391841078,1760904646776,-500.0,0.00032876,8]
[391841079,1760904646786,-500.0,0.00032876,8]
[391841080,1760904646795,-411.77865013,0.00032876,8]
[391841081,1760904646804,-156.53584652,0.00032876,8]
[391841082,1760904646815,-500.0,0.00032876,8]
[391841083,1760904646825,-500.0,0.00032876,8]
[391841084,1760904646834,-1079.96,0.00032876,8]
[391841085,1760904646844,-500.0,0.00032876,8]
[391841086,1760904646853,-500.0,0.00032876,8]
[391841087,1760904646862,-500.0,0.00032876,8]
[391841088,1760904646871,-637.6869527,0.00032876,8]
[391841089,1760904646880,-500.0,0.00032876,8]
[391841090,1760904646890,-1341.47,0.00032876,8]
[391841091,1760904646900,-500.0,0.00032876,8]
[391841092,1760904646910,-500.0,0.00032876,8]
[391841093,1760904646920,-500.0,0.00032876,8]
[391841094,1760904646933,-500.0,0.00032876,8]
[391841095,1760904646943,-514.1797804,0.00032876,8]
[391841096,1760904646952,-251.7,0.00032876,8]
[391841097,1760904646962,-515.88,0.00032876,8]
[391841098,1760904646971,-500.0,0.00032876,8]
[391841099,1760904646981,-500.0,0.00032876,8]
[391841100,1760904646991,-677.16,0.00032876,8]
[391841101,1760904647001,-500.0,0.00032876,8]
[391841102,1760904647011,-500.0,0.00032876,8]
[391841103,1760904647021,-500.0,0.00032876,8]
[391841104,1760904647031,-500.0,0.00032876,8]
[391841105,1760904647042,-500.0,0.00032876,8]
[391841106,1760904647052,-501.63500469,0.00032876,8]
[391841107,1760904647061,-500.0,0.00032876,8]
[391841108,1760904647071,-501.00313011,0.00032876,8]
[391841109,1760904647080,-500.0,0.00032876,8]
[391841110,1760904647091,-500.0,0.00032876,8]
[391841111,1760904647101,-500.0,0.00032876,8]
[391841112,1760904647110,-195.58951726,0.00032876,8]
[391841113,1760904647123,-500.0,0.00032876,8]
[391841114,1760904647134,-492.30361197,0.00032876,8]
[391841115,1760904647144,-500.0,0.00032876,8]
[391841116,1760904647154,-500.0,0.00032876,8]
[391841117,1760904647164,-527.54756294,0.00032876,8]
[391841118,1760904647174,-500.0,0.00032876,8]
[391841119,1760904647183,-500.0,0.00032876,8]
[391841120,1760904647193,-573.30172837,0.00032876,8]
[391841121,1760904647202,-500.0,0.00032876,8]
[391841122,1760904647211,-751.77,0.00032876,2]
[391841123,1760904647221,-500.0,0.00032876,8]
[391841124,1760904647231,-500.0,0.00032876,8]
[391841125,1760904647241,-500.0,0.00032876,8]
[391841126,1760904647252,-500.0,0.00032876,8]
[391841127,1760904647261,-500.0,0.00032876,8]
[391841128,1760904647271,-552.22,0.00032876,8]
[391841129,1760904647281,-500.0,0.00032876,8]
[391841130,1760904647291,-503.32806388,0.00032876,8]
[391841131,1760904647301,-500.0,0.00032876,8]
[391841132,1760904647312,-500.0,0.00032876,8]
[391841133,1760904647324,-500.0,0.00032876,8]
[391841134,1760904647335,-500.0,0.00032876,8]
[391841135,1760904647345,-500.0,0.00032876,8]
[391841136,1760904647355,-500.0,0.00032876,8]
[391841137,1760904647519,-1129.79,0.00032876,8]
[391841138,1760904647528,-500.0,0.00032876,8]
[391841139,1760904647537,-500.0,0.00032876,8]
[391841140,1760904647546,-792.06,0.00032876,8]
[391841141,1760904647555,-538.55,0.00032876,2]
[391841142,1760904647564,-500.0,0.00032876,8]
[391841143,1760904647573,-500.0,0.00032876,8]
[391841144,1760904647582,-500.0,0.00032876,8]
[391841145,1760904647591,-1680.22689339,0.00032878,30]
[391841146,1760904647600,-3078.0,0.00032882,2]
[391841147,1760904647610,-411.0,0.00032919,2]
[391841148,1760904647619,-10000.0,0.00033,10]
[391841149,1760904647629,-743.33456228,0.00033,120]
[391841150,1760904647638,-150.0,0.00033068,2]
[391841151,1760904647648,-150.0,0.00033068,2]
[391841152,1760904647658,-150.0,0.00033068,2]
[391841153,1760904647677,-150.0,0.00033068,2]
[391841154,1760904647690,-150.0,0.00033068,2]
[391841155,1760904647700,-312.72,0.00033068,2]
[391841156,1760904647711,-522.42,0.00033149,8]
[391841157,1760904647722,-32241.358233,0.0003315,8]
[391841158,1760904647732,-753.521228,0.0003315,8]
[391841159,1760904647742,-2110.008371,0.0003315,8]
[391841160,1760904647754,-10436.99765,0.0003315,8]
[391841161,1760904647764,-500.0,0.0003315,8]
[391841162,1760904647774,-500.0,0.0003315,8]
[391841163,1760904647784,-611.28688472,0.0003315,8]
[391841164,1760904647794,-500.0,0.0003315,8]
[391841165,1760904647806,-390.73,0.0003315,8]
[391841166,1760904647815,-500.0,0.0003315,8]
[391841167,1760904647824,-500.0,0.0003315,8]
[391841168,1760904647837,-500.0,0.0003315,8]
[391841169,1760904647847,-500.0,0.0003315,8]
[391841170,1760904647856,-522.42,0.0003315,8]
[391841171,1760904647866,-500.0,0.0003315,8]
[391841172,1760904647876,-500.0,0.0003315,8]
[391841173,1760904647887,-500.0,0.0003315,8]
[391841174,1760904647897,-500.0,0.0003315,8]
[391841175,1760904647907,-500.0,0.0003315,8]
[391841176,1760904647917,-536.37,0.0003315,8]
[391841177,1760904647928,-915.17,0.0003315,8]
[391841178,1760904647938,-500.0,0.0003315,8]
[391841179,1760904647948,-500.0,0.0003315,8]
[391841180,1760904647959,-500.0,0.0003315,8]
[391841181,1760904647969,-500.0,0.0003315,8]
[391841182,1760904647980,-500.0,0.0003315,2]
[391841183,1760904647990,-1022.13,0.0003315,8]
[391841184,1760904648000,-500.0,0.0003315,8]
[391841185,1760904648011,-500.0,0.0003315,8]
[391841186,1760904648021,-500.0,0.0003315,8]